[Event "10th LCC FIDE Open 2018"]
[Site "London"]
[Date "2018.12.15"]
[Round "7"]
[White "Rushbrooke, Remy"]
[Black "Czopor, Maciej"]
[Result "0-1"]
[ECO "D00"]
[WhiteElo "1909"]
[BlackElo "2164"]
[Annotator "NA"]
[PlyCount "102"]
[EventDate "2018.12.09"]
[EventType "swiss"]
[EventCountry "ENG"]
[SourceTitle "playchess.com"]
[Source "ChessBase"]
[SourceQuality "1"]
[TimeControl "40/5400+30:1800+30"]

1. d4 {[%emt 0:00:00]} Nf6 {[%emt 0:00:53]} 2. Bg5 {[%emt 0:00:11]} d5 {[%emt 0:01:54]} 3. Bxf6 {[%emt 0:00:13]} gxf6 {[%emt 0:00:09]} 4. e3 {[%emt 0:00:14]} c5 {[%emt 0:03:04]} 5. dxc5 {[%emt 0:12:48]} e6 {[%emt 0:06:46]} 6. Qh5 {[%emt 0:06:36]} Bxc5 {[%emt 0:08:25]} 7. Nc3 {[%emt 0:03:16]} f5 {[%emt 0:17:37]} 8. O-O-O {[%emt 0:10:25]} Qe7 {[%emt 0:04:56]} 9. Nf3 {[%emt 0:06:38]} Nc6 {[%emt 0:01:31]} 10. Nd4 {[%emt 0:06:16]} Nxd4 {[%emt 0:13:47]} 11. exd4 {[%emt 0:00:05]} Bb4 {[%emt 0:00:24]} 12. Qf3 {[%emt 0:12:48]} Bd7 {[%emt 0:02:06]} 13. Ne2 {[%emt 0:18:47]} O-O-O {[%emt 0:12:50]} 14. Nf4 {[%emt 0:02:55]} Kb8 {[%emt 0:01:16]} 15. Kb1 {[%emt 0:02:20]} Bd6 {[%emt 0:00:37]} 16. h4 {[%emt 0:05:18]} Rc8 {[%emt 0:03:06]} 17. Bd3 {[%emt 0:01:46]} Bc6 {[%emt 0:01:16]} 18. g3 {[%emt 0:01:18]} Qd7 {[%emt 0:03:03]} 19. Qe2 {[%emt 0:02:17]} Qc7 {[%emt 0:01:07]} 20. Qd2 {[%emt 0:01:04]} Qb6 {[%emt 0:00:33]} 21. c3 {[%emt 0:01:22]} Qc7 {[%emt 0:04:02]} 22. Rhg1 {[%emt 0:00:32]} Bd7 {[%emt 0:01:32]} 23. Rde1 {[%emt 0:00:27]} b5 {[%emt 0:00:44]} 24. Rc1 {[%emt 0:00:41]} a5 {[%emt 0:00:48]} 25. Qe2 {[%emt 0:00:30]} Qb6 {[%emt 0:00:23]} 26. Qh5 {[%emt 0:00:26]} Be8 {[%emt 0:01:01]} 27. Qh6 {[%emt 0:00:37]} Qc7 {[%emt 0:02:09]} 28. Nxe6 {[%emt 0:01:14]} fxe6 {[%emt 0:00:44]} 29. Qxe6 {[%emt 0:00:02]} Bc6 {[%emt 0:01:47]} 30. Bxf5 {[%emt 0:00:42]} Rhf8 {[%emt 0:02:42]} 31. Bd3 {[%emt 0:01:43]} Rxf2 {[%emt 0:01:09]} 32. Rcf1 {[%emt 0:00:02]} Bxg3 {[%emt 0:02:14]} 33. Rxf2 {[%emt 0:00:04]} Bxf2 {[%emt 0:00:05]} 34. Rf1 {[%emt 0:00:02]} Bxh4 {[%emt 0:01:20]} 35. Rf7 {[%emt 0:00:05]} Qg3 {[%emt 0:00:50]} 36. Bxb5 {[%emt 0:01:13]} Qg6+ {[%emt 0:00:19]} 37. Qxg6 {[%emt 0:00:39]} hxg6 {[%emt 0:00:06]} 38. Bxc6 {[%emt 0:00:08]} Rxc6 {[%emt 0:00:03]} 39. Rd7 {[%emt 0:00:06]} g5 {[%emt 0:00:46]} 40. Rxd5 {[%emt 0:00:05]} Rg6 {[%emt 0:00:30]} 41. Rd8+ {[%emt 0:30:49]} Kc7 {[%emt 0:30:21]} 42. Rh8 {[%emt 0:00:03]} Bf2 {[%emt 0:00:07]} 43. Rh2 {[%emt 0:00:13]} Be3 {[%emt 0:00:44]} 44. Kc2 {[%emt 0:00:04]} g4 {[%emt 0:00:00]} 45. Kd3 {[%emt 0:00:00]} g3 {[%emt 0:00:00]} 46. Rg2 {[%emt 0:00:00]} Bf2 {[%emt 0:00:00]} 47. Ke2 {[%emt 0:00:00]} Re6+ {[%emt 0:00:00]} 48. Kf3 {[%emt 0:00:00]} Re3+ {[%emt 0:00:00]} 49. Kf4 {[%emt 0:00:00]} Re2 {[%emt 0:00:00]} 50. b4 {[%emt 0:00:00]} a4 {[%emt 0:00:00]} 51. c4 {[%emt 0:00:00]} Rxa2 {[%emt 0:00:00]} 0-1

[Event "10th LCC FIDE Open 2018"]
[Site "London"]
[Date "2018.12.15"]
[Round "8"]
[White "Istratescu, Andrei"]
[Black "Ghasi, Ameet K"]
[Result "1/2-1/2"]
[ECO "B07"]
[WhiteElo "2564"]
[BlackElo "2498"]
[Annotator "ChessBase"]
[PlyCount "138"]
[EventDate "2018.12.09"]
[EventType "swiss"]
[EventCountry "ENG"]
[SourceTitle "playchess.com"]
[Source "ChessBase"]
[SourceQuality "1"]
[TimeControl "40/5400+30:1800+30"]

1. e4 {[%emt 0:00:00]} d6 {[%emt 0:09:22]} 2. d4 {[%emt 0:00:41]} Nf6 {[%emt 0:00:04]} 3. f3 {[%emt 0:00:08]} c5 {[%emt 0:01:10]} 4. d5 {[%emt 0:04:39]} e6 {[%emt 0:00:26]} 5. c4 {[%emt 0:00:05]} exd5 {[%emt 0:00:13]} 6. cxd5 {[%emt 0:00:04]} Be7 {[%emt 0:00:04]} 7. Nc3 {[%emt 0:03:28]} O-O {[%emt 0:01:21]} 8. Be3 {[%emt 0:01:18]} Ne8 {[%emt 0:05:54]} 9. f4 {[%emt 0:09:41]} Bf6 {[%emt 0:04:36]} 10. Nge2 {[%emt 0:04:57]} Nc7 {[%emt 0:19:33]} 11. Qd2 {[%emt 0:05:44]} Nd7 {[%emt 0:02:38]} 12. Ng3 {[%emt 0:03:07]} Re8 {[%emt 0:02:28]} 13. Be2 {[%emt 0:05:58]} Bxc3 {[%emt 0:11:33]} 14. bxc3 {[%emt 0:00:11]} Nf6 {[%emt 0:00:37]} 15. Bf3 {[%emt 0:01:27]} h5 {[%emt 0:01:13]} 16. h4 {[%emt 0:05:41]} Bg4 {[%emt 0:04:38]} 17. Kf2 {[%emt 0:02:28]} Qd7 {[%emt 0:10:55]} 18. a4 {[%emt 0:09:53]} b5 {[%emt 0:02:59]} 19. f5 {[%emt 0:02:00]} Re7 {[%emt 0:00:49]} 20. Bg5 {[%emt 0:01:53]} Nce8 {[%emt 0:00:11]} 21. axb5 {[%emt 0:01:34]} Qxb5 {[%emt 0:00:05]} 22. Rhb1 {[%emt 0:03:17]} Qd7 {[%emt 0:06:12]} 23. Ra6 {[%emt 0:03:47]} Re5 {[%emt 0:00:23]} 24. Kg1 {[%emt 0:01:19]} Kh7 {[%emt 0:01:50]} 25. c4 {[%emt 0:01:01]} Rc8 {[%emt 0:06:03]} 26. Qb2 {[%emt 0:01:46]} Re7 {[%emt 0:00:15]} 27. Bf4 {[%emt 0:07:35]} Qd8 {[%emt 0:00:01]} 28. Qc3 {[%emt 0:01:45]} Rb8 {[%emt 0:01:45]} 29. Re1 {[%emt 0:01:29]} Rb6 {[%emt 0:02:02]} 30. Rxb6 {[%emt 0:01:47]} Qxb6 {[%emt 0:00:16]} 31. Bxg4 {[%emt 0:01:56]} Nxg4 {[%emt 0:02:46]} 32. Nxh5 {[%emt 0:00:46]} Qb4 {[%emt 0:00:05]} 33. Qxb4 {[%emt 0:03:41]} cxb4 {[%emt 0:00:01]} 34. c5 {[%emt 0:00:06]} dxc5 {[%emt 0:02:22]} 35. d6 {[%emt 0:00:16]} Rd7 {[%emt 0:00:55]} 36. e5 {[%emt 0:00:11]} b3 {[%emt 0:00:21]} 37. e6 {[%emt 0:02:37]} fxe6 {[%emt 0:00:01]} 38. fxe6 {[%emt 0:00:02]} Rxd6 {[%emt 0:00:08]} 39. Bxd6 {[%emt 0:00:03]} Nxd6 {[%emt 0:00:01]} 40. Nf4 {[%emt 0:00:14]} Nf6 {[%emt 0:02:17]} 41. g4 {[%emt 0:35:44]} Nxg4 {[%emt 0:19:57]} 42. Nd5 {[%emt 0:00:00]} c4 {[%emt 0:02:14]} 43. e7 {[%emt 0:00:00]} Nf6 {[%emt 0:09:06]} 44. Nxf6+ {[%emt 0:00:00]} gxf6 {[%emt 0:00:01]} 45. Kf2 {[%emt 0:00:00]} Kg6 {[%emt 0:00:34]} 46. Ke3 {[%emt 0:00:00]} Kf7 {[%emt 0:00:07]} 47. Kd2 {[%emt 0:00:00]} f5 {[%emt 0:00:09]} 48. Kc3 {[%emt 0:00:00]} Ne4+ {[%emt 0:00:36]} 49. Kxc4 {[%emt 0:00:00]} b2 {[%emt 0:00:09]} 50. Kd4 {[%emt 0:00:00]} Kxe7 {[%emt 0:00:42]} 51. Rb1 {[%emt 0:00:00]} Nd2 {[%emt 0:00:10]} 52. Rxb2 {[%emt 0:00:00]} Nf3+ {[%emt 0:00:04]} 53. Kd5 {[%emt 0:00:00]} Nxh4 {[%emt 0:02:27]} 54. Ke5 {[%emt 0:00:00]} Ng6+ {[%emt 0:00:04]} 55. Kxf5 {[%emt 0:00:00]} Nf8 {[%emt 0:00:03]} 56. Ra2 {[%emt 0:00:00]} Nd7 {[%emt 0:00:16]} 57. Ra6 {[%emt 0:00:00]} Nc5 {[%emt 0:00:02]} 58. Rh6 {[%emt 0:00:00]} a5 {[%emt 0:00:15]} 59. Ke5 {[%emt 0:00:00]} Nd7+ {[%emt 0:00:05]} 60. Kd5 {[%emt 0:00:00]} Nf6+ {[%emt 0:00:03]} 61. Kc5 {[%emt 0:00:00]} a4 {[%emt 0:00:10]} 62. Rh4 {[%emt 0:00:00]} a3 {[%emt 0:00:05]} 63. Ra4 {[%emt 0:00:00]} Ke6 {[%emt 0:00:09]} 64. Kd4 {[%emt 0:00:00]} a2 {[%emt 0:00:46]} 65. Rxa2 {[%emt 0:00:00]} Kf5 {[%emt 0:00:04]} 66. Ra1 {[%emt 0:00:00]} Ke6 {[%emt 0:00:25]} 67. Ra5 {[%emt 0:00:00]} Nd7 {[%emt 0:00:14]} 68. Rh5 {[%emt 0:00:00]} Nf6 {[%emt 0:00:10]} 69. Re5+ {[%emt 0:00:00]} Kd6 {[%emt 0:00:04]} 1/2-1/2

[Event "10th LCC FIDE Open 2018"]
[Site "London"]
[Date "2018.12.15"]
[Round "8"]
[White "Mirzoyan, Davit T."]
[Black "Stoyanov, Viktor"]
[Result "1-0"]
[ECO "D66"]
[WhiteElo "2382"]
[BlackElo "2205"]
[Annotator "NA"]
[PlyCount "103"]
[EventDate "2018.12.09"]
[EventType "swiss"]
[EventCountry "ENG"]
[SourceTitle "playchess.com"]
[Source "ChessBase"]
[SourceQuality "1"]
[TimeControl "40/5400+30:1800+30"]

1. d4 {[%emt 0:00:00]} d5 {[%emt 0:01:57]} 2. c4 {[%emt 0:02:06]} c6 {[%emt 0:00:35]} 3. Nf3 {[%emt 0:00:09]} Nf6 {[%emt 0:00:15]} 4. Nc3 {[%emt 0:00:19]} e6 {[%emt 0:00:13]} 5. Bg5 {[%emt 0:02:03]} Nbd7 {[%emt 0:00:33]} 6. e3 {[%emt 0:03:54]} h6 {[%emt 0:00:43]} 7. Bh4 {[%emt 0:02:15]} Be7 {[%emt 0:00:10]} 8. Rc1 {[%emt 0:04:02]} O-O {[%emt 0:00:22]} 9. Bd3 {[%emt 0:00:40]} Re8 {[%emt 0:01:09]} 10. O-O {[%emt 0:00:26]} a6 {[%emt 0:06:16]} 11. Bg3 {[%emt 0:07:19]} Nf8 {[%emt 0:10:58]} 12. Qe2 {[%emt 0:11:46]} Nh5 {[%emt 0:04:33]} 13. Be5 {[%emt 0:05:22]} dxc4 {[%emt 0:03:51]} 14. Bxc4 {[%emt 0:00:23]} Ng6 {[%emt 0:00:11]} 15. Rfd1 {[%emt 0:01:54]} Nf6 {[%emt 0:01:50]} 16. Bg3 {[%emt 0:02:22]} Qa5 {[%emt 0:02:48]} 17. Bd3 {[%emt 0:01:25]} Nf8 {[%emt 0:01:26]} 18. Ne5 {[%emt 0:07:29]} N8d7 {[%emt 0:02:10]} 19. Nc4 {[%emt 0:00:22]} Qd8 {[%emt 0:00:57]} 20. a4 {[%emt 0:05:56]} Nb6 {[%emt 0:01:08]} 21. e4 {[%emt 0:09:10]} Nxc4 {[%emt 0:06:23]} 22. Bxc4 {[%emt 0:00:01]} Qa5 {[%emt 0:03:05]} 23. Bf4 {[%emt 0:02:42]} Bf8 {[%emt 0:03:24]} 24. Rd3 {[%emt 0:03:39]} Qh5 {[%emt 0:03:04]} 25. Qd2 {[%emt 0:05:54]} Qa5 {[%emt 0:07:10]} 26. Re1 {[%emt 0:06:30]} b5 {[%emt 0:02:19]} 27. Bb3 {[%emt 0:00:00]} Bb7 {[%emt 0:02:45]} 28. e5 {[%emt 0:05:19]} Nd5 {[%emt 0:00:36]} 29. Bxh6 {[%emt 0:00:28]} gxh6 {[%emt 0:03:50]} 30. Nxd5 {[%emt 0:06:55]} Qxd2 {[%emt 0:00:13]} 31. Nf6+ {[%emt 0:00:01]} Kh8 {[%emt 0:00:10]} 32. Rxd2 {[%emt 0:00:05]} Bb4 {[%emt 0:02:36]} 33. Red1 {[%emt 0:00:19]} Bxd2 {[%emt 0:00:22]} 34. Nxe8 {[%emt 0:00:01]} Bb4 {[%emt 0:00:19]} 35. Nf6 {[%emt 0:00:17]} Rd8 {[%emt 0:01:25]} 36. Ne4 {[%emt 0:03:43]} Kh7 {[%emt 0:01:26]} 37. Nc5 {[%emt 0:01:25]} Bxc5 {[%emt 0:03:57]} 38. dxc5 {[%emt 0:00:02]} Rxd1+ {[%emt 0:00:10]} 39. Bxd1 {[%emt 0:00:05]} Kg6 {[%emt 0:00:06]} 40. Bc2+ {[%emt 0:00:09]} Kg5 {[%emt 0:00:06]} 41. g3 {[%emt 0:30:07]} f5 {[%emt 0:31:37]} 42. h4+ {[%emt 0:01:18]} Kg6 {[%emt 0:00:04]} 43. Kg2 {[%emt 0:00:35]} a5 {[%emt 0:00:27]} 44. g4 {[%emt 0:00:00]} Bc8 {[%emt 0:00:00]} 45. Kg3 {[%emt 0:00:00]} b4 {[%emt 0:00:00]} 46. Kf4 {[%emt 0:00:00]} h5 {[%emt 0:00:00]} 47. f3 {[%emt 0:00:00]} Bd7 {[%emt 0:00:00]} 48. gxf5+ {[%emt 0:00:00]} exf5 {[%emt 0:00:00]} 49. Bb3 {[%emt 0:00:00]} Bc8 {[%emt 0:00:00]} 50. Bc4 {[%emt 0:00:00]} Bd7 {[%emt 0:00:00]} 51. e6 {[%emt 0:00:00]} Bc8 {[%emt 0:00:00]} 52. Ke5 {[%emt 0:00:00]} 1-0

[Event "10th LCC FIDE Open 2018"]
[Site "London"]
[Date "2018.12.15"]
[Round "8"]
[White "Gschnitzer, Adrian"]
[Black "Villiers, Thomas"]
[Result "0-1"]
[ECO "C10"]
[WhiteElo "2374"]
[BlackElo "2205"]
[Annotator "NA"]
[PlyCount "64"]
[EventDate "2018.12.09"]
[EventType "swiss"]
[EventCountry "ENG"]
[SourceTitle "playchess.com"]
[Source "ChessBase"]
[SourceQuality "1"]
[TimeControl "40/5400+30:1800+30"]

1. e4 {[%emt 0:00:00]} e6 {[%emt 0:00:00]} 2. d4 {[%emt 0:00:00]} d5 {[%emt 0:00:00]} 3. Nd2 {[%emt 0:00:00]} dxe4 {[%emt 0:00:00]} 4. Nxe4 {[%emt 0:00:00]} Nd7 {[%emt 0:00:01]} 5. g3 {[%emt 0:00:28]} Ngf6 {[%emt 0:00:28]} 6. Nxf6+ {[%emt 0:00:25]} Nxf6 {[%emt 0:01:07]} 7. Bg2 {[%emt 0:00:07]} Be7 {[%emt 0:00:39]} 8. Nf3 {[%emt 0:00:39]} O-O {[%emt 0:00:23]} 9. O-O {[%emt 0:00:13]} c5 {[%emt 0:01:29]} 10. b3 {[%emt 0:03:05]} cxd4 {[%emt 0:01:31]} 11. Nxd4 {[%emt 0:02:40]} e5 {[%emt 0:01:45]} 12. Nf3 {[%emt 0:01:32]} e4 {[%emt 0:01:38]} 13. Nd4 {[%emt 0:04:43]} Bg4 {[%emt 0:03:08]} 14. Qd2 {[%emt 0:00:46]} Qd7 {[%emt 0:02:24]} 15. Bb2 {[%emt 0:10:50]} Rad8 {[%emt 0:06:38]} 16. Rfe1 {[%emt 0:03:18]} Bc5 {[%emt 0:01:15]} 17. c3 {[%emt 0:00:07]} Rfe8 {[%emt 0:03:35]} 18. Rac1 {[%emt 0:01:44]} Bb6 {[%emt 0:08:18]} 19. Re3 {[%emt 0:03:20]} Bf5 {[%emt 0:08:50]} 20. Qe1 {[%emt 0:06:27]} Ng4 {[%emt 0:05:25]} 21. Re2 {[%emt 0:01:18]} Ne5 {[%emt 0:01:05]} 22. Nxf5 {[%emt 0:02:05]} Nd3 {[%emt 0:00:35]} 23. Rd1 {[%emt 0:01:38]} Nxe1 {[%emt 0:08:13]} 24. Rxd7 {[%emt 0:01:50]} Rxd7 {[%emt 0:00:04]} 25. Rxe1 {[%emt 0:03:52]} Rd2 {[%emt 0:00:06]} 26. Rb1 {[%emt 0:00:10]} Bxf2+ {[%emt 0:00:57]} 27. Kf1 {[%emt 0:06:57]} e3 {[%emt 0:00:21]} 28. Nd4 {[%emt 0:02:45]} e2+ {[%emt 0:00:19]} 29. Nxe2 {[%emt 0:00:07]} Rexe2 {[%emt 0:01:07]} 30. Bf3 {[%emt 0:01:21]} Rxb2 {[%emt 0:00:16]} 31. Bxe2 {[%emt 0:00:45]} Rxb1+ {[%emt 0:00:04]} 32. Kxf2 {[%emt 0:00:09]} Rb2 {[%emt 0:00:02]} 0-1

[Event "10th LCC FIDE Open 2018"]
[Site "London"]
[Date "2018.12.15"]
[Round "8"]
[White "Mihajlov, Sebastian"]
[Black "Sumit, Kumar"]
[Result "1-0"]
[ECO "E12"]
[WhiteElo "2358"]
[BlackElo "2179"]
[Annotator "NA"]
[PlyCount "53"]
[EventDate "2018.12.09"]
[EventType "swiss"]
[EventCountry "ENG"]
[SourceTitle "playchess.com"]
[Source "ChessBase"]
[SourceQuality "1"]
[TimeControl "40/5400+30:1800+30"]

1. d4 {[%emt 0:10:00]} Nf6 {[%emt 0:00:00]} 2. c4 {[%emt 0:00:08]} e6 {[%emt 0:00:00]} 3. Nf3 {[%emt 0:00:18]} b6 {[%emt 0:00:06]} 4. a3 {[%emt 0:00:07]} Ba6 {[%emt 0:00:12]} 5. Qc2 {[%emt 0:00:19]} Bb7 {[%emt 0:00:06]} 6. Nc3 {[%emt 0:00:08]} c5 {[%emt 0:00:07]} 7. e4 {[%emt 0:00:09]} cxd4 {[%emt 0:00:07]} 8. Nxd4 {[%emt 0:00:04]} Bc5 {[%emt 0:00:06]} 9. Nb3 {[%emt 0:00:50]} Nc6 {[%emt 0:00:30]} 10. Nxc5 {[%emt 0:00:33]} bxc5 {[%emt 0:00:07]} 11. Bd3 {[%emt 0:00:14]} O-O {[%emt 0:05:50]} 12. O-O {[%emt 0:01:25]} d6 {[%emt 0:00:28]} 13. Rb1 {[%emt 0:04:49]} Rc8 {[%emt 0:08:12]} 14. f3 {[%emt 0:05:16]} Qe7 {[%emt 0:02:49]} 15. Qf2 {[%emt 0:01:13]} Nd7 {[%emt 0:10:32]} 16. Be3 {[%emt 0:01:43]} Nce5 {[%emt 0:06:17]} 17. Be2 {[%emt 0:00:10]} Nb6 {[%emt 0:04:12]} 18. b3 {[%emt 0:00:46]} f5 {[%emt 0:00:45]} 19. exf5 {[%emt 0:01:53]} d5 {[%emt 0:01:36]} 20. f6 {[%emt 0:01:54]} gxf6 {[%emt 0:06:56]} 21. Bh6 {[%emt 0:04:25]} Rfd8 {[%emt 0:01:33]} 22. f4 {[%emt 0:01:54]} Ng6 {[%emt 0:02:33]} 23. Rbe1 {[%emt 0:16:02]} d4 {[%emt 0:01:50]} 24. Bg4 {[%emt 0:00:41]} Rd6 {[%emt 0:01:41]} 25. Nb5 {[%emt 0:00:21]} Re8 {[%emt 0:02:37]} 26. f5 {[%emt 0:00:40]} Ne5 {[%emt 0:00:08]} 27. Rxe5 {[%emt 0:00:05]} 1-0

[Event "10th LCC FIDE Open 2018"]
[Site "London"]
[Date "2018.12.15"]
[Round "8"]
[White "Lyell, Mark"]
[Black "Ogunshola, Ben"]
[Result "1/2-1/2"]
[ECO "B07"]
[WhiteElo "2317"]
[BlackElo "2172"]
[Annotator "ChessBase"]
[PlyCount "116"]
[EventDate "2018.12.09"]
[EventType "swiss"]
[EventCountry "ENG"]
[SourceTitle "playchess.com"]
[Source "ChessBase"]
[SourceQuality "1"]
[TimeControl "40/5400+30:1800+30"]

1. e4 {[%emt 0:00:00]} d6 {[%emt 0:04:29]} 2. Nc3 {[%emt 0:00:00]} Nf6 {[%emt 0:00:51]} 3. f4 {[%emt 0:00:19]} g6 {[%emt 0:00:25]} 4. Nf3 {[%emt 0:00:35]} Bg7 {[%emt 0:00:20]} 5. Bc4 {[%emt 0:00:16]} Nxe4 {[%emt 0:03:30]} 6. Bxf7+ {[%emt 0:01:53]} Kxf7 {[%emt 0:00:02]} 7. Nxe4 {[%emt 0:00:30]} Rf8 {[%emt 0:01:03]} 8. c3 {[%emt 0:00:33]} Kg8 {[%emt 0:03:17]} 9. d4 {[%emt 0:01:59]} e6 {[%emt 0:04:24]} 10. Qb3 {[%emt 0:03:22]} Qe8 {[%emt 0:05:16]} 11. O-O {[%emt 0:02:47]} h6 {[%emt 0:01:16]} 12. Bd2 {[%emt 0:01:30]} Nd7 {[%emt 0:02:18]} 13. Rae1 {[%emt 0:01:01]} Nf6 {[%emt 0:02:08]} 14. Nxf6+ {[%emt 0:04:13]} Rxf6 {[%emt 0:00:19]} 15. d5 {[%emt 0:03:54]} Qf7 {[%emt 0:02:24]} 16. c4 {[%emt 0:11:23]} exd5 {[%emt 0:06:09]} 17. cxd5 {[%emt 0:00:11]} c5 {[%emt 0:00:26]} 18. h3 {[%emt 0:23:27]} b6 {[%emt 0:01:59]} 19. Bc3 {[%emt 0:05:37]} Rxf4 {[%emt 0:02:21]} 20. Bxg7 {[%emt 0:00:33]} Kxg7 {[%emt 0:00:56]} 21. Qc3+ {[%emt 0:03:11]} Kg8 {[%emt 0:17:29]} 22. g3 {[%emt 0:06:25]} Rf5 {[%emt 0:04:48]} 23. Nh4 {[%emt 0:07:50]} Rxf1+ {[%emt 0:09:56]} 24. Rxf1 {[%emt 0:00:08]} Qxd5 {[%emt 0:00:19]} 25. Nxg6 {[%emt 0:08:23]} Qd4+ {[%emt 0:00:20]} 26. Qxd4 {[%emt 0:00:09]} cxd4 {[%emt 0:00:03]} 27. Rf6 {[%emt 0:00:47]} Ba6 {[%emt 0:08:56]} 28. Rxd6 {[%emt 0:06:11]} d3 {[%emt 0:00:12]} 29. Nf4 {[%emt 0:01:09]} Rc8 {[%emt 0:00:17]} 30. Nxd3 {[%emt 0:01:27]} Bxd3 {[%emt 0:02:35]} 31. Rxd3 {[%emt 0:00:10]} Rc2 {[%emt 0:02:01]} 32. Rb3 {[%emt 0:01:00]} Kg7 {[%emt 0:00:19]} 33. Rb5 {[%emt 0:01:57]} Kg6 {[%emt 0:00:27]} 34. g4 {[%emt 0:01:18]} Rd2 {[%emt 0:00:24]} 35. a4 {[%emt 0:00:59]} Rc2 {[%emt 0:01:42]} 36. b3 {[%emt 0:00:31]} Rd2 {[%emt 0:07:14]} 37. Kh1 {[%emt 0:01:55]} Re2 {[%emt 0:01:34]} 38. Kg1 {[%emt 0:00:41]} Rd2 {[%emt 0:00:08]} 39. b4 {[%emt 0:00:10]} Rb2 {[%emt 0:01:34]} 40. h4 {[%emt 0:00:13]} Kf6 {[%emt 0:02:49]} 41. Kf1 {[%emt 0:05:23]} Kg6 {[%emt 0:08:57]} 42. h5+ {[%emt 0:02:34]} Kf6 {[%emt 0:00:13]} 43. Rf5+ {[%emt 0:09:40]} Ke6 {[%emt 0:00:19]} 44. Rb5 {[%emt 0:02:02]} Kf6 {[%emt 0:00:10]} 45. Kg1 {[%emt 0:02:05]} Ke6 {[%emt 0:00:16]} 46. Kh1 {[%emt 0:05:11]} Kf6 {[%emt 0:00:17]} 47. a5 {[%emt 0:01:10]} bxa5 {[%emt 0:01:03]} 48. Rf5+ {[%emt 0:00:18]} Ke6 {[%emt 0:00:15]} 49. bxa5 {[%emt 0:02:07]} Rb4 {[%emt 0:00:30]} 50. Rf8 {[%emt 0:01:42]} Rxg4 {[%emt 0:01:11]} 51. Ra8 {[%emt 0:00:18]} Rh4+ {[%emt 0:07:40]} 52. Kg2 {[%emt 0:00:09]} Rxh5 {[%emt 0:00:06]} 53. Rxa7 {[%emt 0:00:06]} Kd6 {[%emt 0:00:14]} 54. Kf3 {[%emt 0:00:27]} Re5 {[%emt 0:01:42]} 55. Kf4 {[%emt 0:00:33]} Re1 {[%emt 0:00:15]} 56. Ra6+ {[%emt 0:00:57]} Kc7 {[%emt 0:00:16]} 57. Rxh6 {[%emt 0:00:18]} Kb7 {[%emt 0:00:03]} 58. Rb6+ {[%emt 0:00:34]} Ka7 {[%emt 0:00:04]} 1/2-1/2

[Event "10th LCC FIDE Open 2018"]
[Site "London"]
[Date "2018.12.15"]
[Round "8"]
[White "Wu, Li"]
[Black "Russell, Christopher"]
[Result "1-0"]
[ECO "D36"]
[WhiteElo "2317"]
[BlackElo "2169"]
[Annotator "NA"]
[PlyCount "89"]
[EventDate "2018.12.09"]
[EventType "swiss"]
[EventCountry "ENG"]
[SourceTitle "playchess.com"]
[Source "ChessBase"]
[SourceQuality "1"]
[TimeControl "40/5400+30:1800+30"]

1. d4 {[%emt 0:00:00]} e6 {[%emt 0:01:23]} 2. Nf3 {[%emt 0:02:35]} Nf6 {[%emt 0:00:15]} 3. c4 {[%emt 0:00:20]} d5 {[%emt 0:00:07]} 4. Nc3 {[%emt 0:00:38]} Be7 {[%emt 0:02:01]} 5. cxd5 {[%emt 0:05:26]} exd5 {[%emt 0:02:17]} 6. Bg5 {[%emt 0:01:22]} O-O {[%emt 0:03:08]} 7. e3 {[%emt 0:01:25]} Nbd7 {[%emt 0:03:15]} 8. Bd3 {[%emt 0:01:11]} c6 {[%emt 0:04:31]} 9. Qc2 {[%emt 0:00:08]} Re8 {[%emt 0:00:57]} 10. h3 {[%emt 0:01:36]} Nf8 {[%emt 0:03:16]} 11. O-O-O {[%emt 0:02:56]} Ne4 {[%emt 0:08:23]} 12. Bf4 {[%emt 0:06:06]} Nxc3 {[%emt 0:04:08]} 13. Qxc3 {[%emt 0:01:55]} Be6 {[%emt 0:05:29]} 14. Kb1 {[%emt 0:00:05]} Rc8 {[%emt 0:01:48]} 15. g4 {[%emt 0:08:31]} b5 {[%emt 0:12:44]} 16. Qd2 {[%emt 0:15:47]} a5 {[%emt 0:03:43]} 17. Rdg1 {[%emt 0:04:23]} Qb6 {[%emt 0:10:24]} 18. h4 {[%emt 0:10:23]} Bb4 {[%emt 0:03:49]} 19. Qd1 {[%emt 0:07:59]} a4 {[%emt 0:04:46]} 20. h5 {[%emt 0:02:00]} a3 {[%emt 0:01:08]} 21. b3 {[%emt 0:00:07]} c5 {[%emt 0:01:40]} 22. dxc5 {[%emt 0:01:23]} Qxc5 {[%emt 0:01:47]} 23. Nd4 {[%emt 0:00:17]} Bd7 {[%emt 0:07:34]} 24. Bf5 {[%emt 0:10:26]} Bc3 {[%emt 0:03:57]} 25. f3 {[%emt 0:01:39]} Ne6 {[%emt 0:04:04]} 26. Bxe6 {[%emt 0:00:05]} Bxe6 {[%emt 0:00:38]} 27. h6 {[%emt 0:04:03]} g6 {[%emt 0:01:12]} 28. Bg5 {[%emt 0:03:58]} Bxd4 {[%emt 0:01:34]} 29. exd4 {[%emt 0:00:41]} Qc3 {[%emt 0:00:23]} 30. Rh2 {[%emt 0:00:07]} b4 {[%emt 0:00:45]} 31. Rc2 {[%emt 0:00:38]} Qxc2+ {[%emt 0:00:26]} 32. Qxc2 {[%emt 0:00:15]} Rxc2 {[%emt 0:00:05]} 33. Kxc2 {[%emt 0:00:03]} Rc8+ {[%emt 0:00:41]} 34. Kd2 {[%emt 0:00:34]} Kf8 {[%emt 0:01:46]} 35. Rc1 {[%emt 0:00:25]} Rb8 {[%emt 0:02:40]} 36. Rc7 {[%emt 0:01:11]} Ke8 {[%emt 0:00:23]} 37. Ke3 {[%emt 0:03:08]} Rb6 {[%emt 0:00:49]} 38. Re7+ {[%emt 0:01:16]} Kf8 {[%emt 0:00:02]} 39. Kf4 {[%emt 0:00:20]} Rc6 {[%emt 0:00:51]} 40. Ke5 {[%emt 0:02:11]} Rc2 {[%emt 0:00:34]} 41. Kd6 {[%emt 0:31:38]} Rc8 {[%emt 0:05:03]} 42. Rb7 {[%emt 0:00:00]} Re8 {[%emt 0:01:37]} 43. Be7+ {[%emt 0:00:00]} Kg8 {[%emt 0:00:29]} 44. Rxb4 {[%emt 0:00:00]} Bc8 {[%emt 0:02:15]} 45. g5 {[%emt 0:00:00]} 1-0